[Event "*** Titled Tuesday Blitz"]
[Site "Chess.com"]
[Date "2019.03.05"]
[Round "5"]
[White "emperor87"]
[Black "gmjlh"]
[Result "1-0"]
[WhiteElo "2727"]
[BlackElo "2707"]
[TimeControl "180+2"]
[EndTime "14:12:00 PST"]
[Termination "emperor87 won on time"]

1. e4 {[%clk 0:02:54.3]} 1... c5 {[%clk 0:02:57.3]} 2. Nf3 {[%clk 0:02:54.2]}
2... Nc6 {[%clk 0:02:58.2]} 3. d4 {[%clk 0:02:54]} 3... cxd4 {[%clk 0:02:59.3]}
4. Nxd4 {[%clk 0:02:55.6]} 4... Nf6 {[%clk 0:03:00.5]} 5. Nc3 {[%clk 0:02:55.7]}
5... e5 {[%clk 0:03:01.2]} 6. Ndb5 {[%clk 0:02:55.7]} 6... d6 {[%clk 0:03:02.6]}
7. Bg5 {[%clk 0:02:56.8]} 7... a6 {[%clk 0:03:02.9]} 8. Na3 {[%clk 0:02:57.6]}
8... b5 {[%clk 0:03:03.8]} 9. Bxf6 {[%clk 0:02:58.7]} 9... gxf6 {[%clk
0:03:04.8]} 10. Nd5 {[%clk 0:02:59.7]} 10... Bg7 {[%clk 0:03:00.4]} 11. Bd3
{[%clk 0:03:00.5]} 11... Ne7 {[%clk 0:02:48.9]} 12. c4 {[%clk 0:02:59.4]} 12...
Nxd5 {[%clk 0:02:36.8]} 13. cxd5 {[%clk 0:02:58.7]} 13... f5 {[%clk 0:02:29]}
14. exf5 {[%clk 0:02:58.3]} 14... O-O {[%clk 0:02:14.3]} 15. Be4 {[%clk
0:02:51]} 15... Qg5 {[%clk 0:01:24.8]} 16. Qf3 {[%clk 0:02:46.4]} 16... Qf4
{[%clk 0:01:25.7]} 17. Ke2 {[%clk 0:02:24.6]} 17... Bd7 {[%clk 0:01:22.2]} 18.
Rac1 {[%clk 0:02:21.5]} 18... Rac8 {[%clk 0:01:21.8]} 19. Rxc8 {[%clk
0:01:42.7]} 19... Rxc8 {[%clk 0:01:22.3]} 20. Qxf4 {[%clk 0:01:34.3]} 20... exf4
{[%clk 0:01:22.6]} 21. b4 {[%clk 0:01:34.1]} 21... a5 {[%clk 0:00:47.5]} 22.
bxa5 {[%clk 0:01:32.4]} 22... b4 {[%clk 0:00:48.4]} 23. Nc2 {[%clk 0:01:33.1]}
23... Bb5+ {[%clk 0:00:45.9]} 24. Kf3 {[%clk 0:01:33.4]} 24... Ba4 {[%clk
0:00:16.7]} 25. Nxb4 {[%clk 0:01:33.1]} 25... Rc3+ {[%clk 0:00:12.6]} 26. Kg4
{[%clk 0:01:31.2]} 26... Rc4 {[%clk 0:00:12.6]} 27. a3 {[%clk 0:01:26.9]} 27...
Rxe4 {[%clk 0:00:11.8]} 28. a6 {[%clk 0:01:27.9]} 28... Bd4 {[%clk 0:00:09.3]}
29. Rc1 {[%clk 0:01:26.6]} 29... Bc5 {[%clk 0:00:05]} 30. Nd3 {[%clk 0:01:08.5]}
30... Bb6 {[%clk 0:00:06.1]} 31. Rc8+ {[%clk 0:01:07.3]} 31... Kg7 {[%clk
0:00:06.9]} 32. Rb8 {[%clk 0:01:00.2]} 32... Bd1+ {[%clk 0:00:04]} 33. f3 {[%clk
0:00:59.7]} 33... Bg1 {[%clk 0:00:05.1]} 34. Rb1 {[%clk 0:00:55.5]} 34... Rd4
{[%clk 0:00:02.4]} 35. Rxd1 {[%clk 0:00:54]} 35... Be3 {[%clk 0:00:03.7]} 36.
Nb2 {[%clk 0:00:45.8]} 1-0

[Event "*** Titled Tuesday Blitz"]
[Site "Chess.com"]
[Date "2019.03.05"]
[Round "5"]
[White "BlueWizzard"]
[Black "GeorgMeier"]
[Result "0-1"]
[WhiteElo "2684"]
[BlackElo "2841"]
[TimeControl "180+2"]
[EndTime "14:12:01 PST"]
[Termination "GeorgMeier won by resignation"]

1. e3 {[%clk 0:03:01.9]} 1... e5 {[%clk 0:02:59.5]} 2. b3 {[%clk 0:03:03.3]}
2... d5 {[%clk 0:03:00]} 3. Bb2 {[%clk 0:03:05.2]} 3... Bd6 {[%clk 0:03:01.2]}
4. c4 {[%clk 0:03:05.8]} 4... Nf6 {[%clk 0:02:51.8]} 5. Nc3 {[%clk 0:03:06.5]}
5... d4 {[%clk 0:02:50.6]} 6. Nb5 {[%clk 0:03:07.1]} 6... c5 {[%clk 0:02:49.8]}
7. exd4 {[%clk 0:03:06.1]} 7... exd4 {[%clk 0:02:49.8]} 8. Nxd6+ {[%clk
0:03:07]} 8... Qxd6 {[%clk 0:02:50.5]} 9. Bd3 {[%clk 0:03:05.9]} 9... Nc6 {[%clk
0:02:50.1]} 10. Nf3 {[%clk 0:03:06]} 10... O-O {[%clk 0:02:46.7]} 11. O-O {[%clk
0:03:06.2]} 11... Bg4 {[%clk 0:02:35.8]} 12. Re1 {[%clk 0:03:06.9]} 12... b6
{[%clk 0:02:03]} 13. h3 {[%clk 0:03:05.9]} 13... Bh5 {[%clk 0:02:01.5]} 14. Bf1
{[%clk 0:02:59.6]} 14... Rae8 {[%clk 0:01:58]} 15. Rxe8 {[%clk 0:02:58.3]} 15...
Rxe8 {[%clk 0:01:58.8]} 16. d3 {[%clk 0:02:54.3]} 16... h6 {[%clk 0:01:26.1]}
17. a3 {[%clk 0:02:45.8]} 17... Nd7 {[%clk 0:01:22]} 18. Be2 {[%clk 0:02:40]}
18... Qe6 {[%clk 0:00:46.7]} 19. Qd2 {[%clk 0:02:28.2]} 19... Qxe2 {[%clk
0:00:38.5]} 20. Re1 {[%clk 0:02:28.7]} 20... Bxf3 {[%clk 0:00:39.6]} 21. Rxe2
{[%clk 0:02:29.9]} 21... Rxe2 {[%clk 0:00:41.5]} 22. Qf4 {[%clk 0:02:31.1]}
22... Rxb2 {[%clk 0:00:33.2]} 23. Qxf3 {[%clk 0:02:28.8]} 23... Ncb8 {[%clk
0:00:28.7]} 24. b4 {[%clk 0:02:20.8]} 24... cxb4 {[%clk 0:00:28.9]} 25. axb4
{[%clk 0:02:20.5]} 25... Rxb4 {[%clk 0:00:30.3]} 26. Qe4 {[%clk 0:02:22]} 26...
Nf8 {[%clk 0:00:27.3]} 27. Qxd4 {[%clk 0:02:22.3]} 27... a5 {[%clk 0:00:25.4]}
28. Qd6 {[%clk 0:02:23.1]} 28... Nbd7 {[%clk 0:00:24.9]} 29. g4 {[%clk
0:02:19.3]} 29... Rb1+ {[%clk 0:00:21.3]} 30. Kg2 {[%clk 0:02:20.1]} 30... a4
{[%clk 0:00:22.2]} 31. Qa3 {[%clk 0:02:20.1]} 31... Rb3 {[%clk 0:00:23.3]} 32.
Qxa4 {[%clk 0:02:20.6]} 32... Rxd3 {[%clk 0:00:24.8]} 33. h4 {[%clk 0:02:21.6]}
33... Rd4 {[%clk 0:00:25.2]} 34. f3 {[%clk 0:02:21.5]} 34... Ne5 {[%clk
0:00:26.1]} 35. Qa7 {[%clk 0:02:17]} 35... Nxc4 {[%clk 0:00:26]} 36. Qc7 {[%clk
0:02:17]} 36... b5 {[%clk 0:00:25]} 37. Qb8 {[%clk 0:02:17.4]} 37... b4 {[%clk
0:00:24.9]} 38. Kg3 {[%clk 0:02:16.6]} 38... Nd2 {[%clk 0:00:24]} 39. g5 {[%clk
0:02:17.3]} 39... hxg5 {[%clk 0:00:23.6]} 40. hxg5 {[%clk 0:02:19.2]} 40... g6
{[%clk 0:00:25.1]} 41. Qb6 {[%clk 0:02:19.1]} 41... Rd3 {[%clk 0:00:26]} 42.
Qxb4 {[%clk 0:02:19.7]} 42... Nxf3 {[%clk 0:00:26.2]} 43. Kf2 {[%clk 0:02:18.1]}
43... Nd4 {[%clk 0:00:25.5]} 44. Qc4 {[%clk 0:02:18.4]} 44... Rf3+ {[%clk
0:00:24.4]} 45. Kg2 {[%clk 0:02:19.3]} 45... Nfe6 {[%clk 0:00:25.8]} 46. Qd5
{[%clk 0:02:19.8]} 46... Rf5 {[%clk 0:00:26.4]} 47. Qa8+ {[%clk 0:02:19.5]}
47... Kg7 {[%clk 0:00:27.5]} 48. Kh3 {[%clk 0:02:21.1]} 48... Rxg5 {[%clk
0:00:28.8]} 49. Qe4 {[%clk 0:02:19.8]} 49... Rh5+ {[%clk 0:00:26.1]} 50. Kg2
{[%clk 0:02:20.4]} 50... Rf5 {[%clk 0:00:28]} 51. Qe3 {[%clk 0:02:20.4]} 51...
g5 {[%clk 0:00:29]} 52. Qe4 {[%clk 0:02:20.2]} 52... Kf6 {[%clk 0:00:30.4]} 53.
Kg3 {[%clk 0:02:20.9]} 53... Rf3+ {[%clk 0:00:30.7]} 54. Kh2 {[%clk 0:02:20.3]}
54... Rf4 {[%clk 0:00:30.9]} 55. Qe3 {[%clk 0:02:21.3]} 55... Rh4+ {[%clk
0:00:30.2]} 56. Kg2 {[%clk 0:02:21.9]} 56... Rg4+ {[%clk 0:00:31.4]} 57. Kh3
{[%clk 0:02:21.3]} 57... Rf4 {[%clk 0:00:29.5]} 58. Kg2 {[%clk 0:02:21.8]} 58...
Nf5 {[%clk 0:00:30.6]} 59. Qc3+ {[%clk 0:02:21.7]} 59... Kg6 {[%clk 0:00:31.9]}
60. Qd3 {[%clk 0:02:22.5]} 60... g4 {[%clk 0:00:32.8]} 61. Qd7 {[%clk
0:02:21.8]} 61... g3 {[%clk 0:00:33.1]} 62. Kh3 {[%clk 0:02:22.7]} 62... Rh4+
{[%clk 0:00:33.9]} 63. Kg2 {[%clk 0:02:23.4]} 63... Rh2+ {[%clk 0:00:34]} 64.
Kf3 {[%clk 0:02:24.5]} 64... Rf2+ {[%clk 0:00:34.9]} 65. Kg4 {[%clk 0:02:25.3]}
65... g2 {[%clk 0:00:35.5]} 66. Qd3 {[%clk 0:02:24.5]} 66... g1=Q+ {[%clk
0:00:35.6]} 0-1

[Event "*** Titled Tuesday Blitz"]
[Site "Chess.com"]
[Date "2019.03.05"]
[Round "5"]
[White "Thjop"]
[Black "MaxiAMueller"]
[Result "1-0"]
[WhiteElo "2558"]
[BlackElo "2049"]
[TimeControl "180+2"]
[EndTime "14:12:08 PST"]
[Termination "Thjop won by resignation"]

1. d4 {[%clk 0:03:01.6]} 1... d5 {[%clk 0:03:00.8]} 2. c4 {[%clk 0:03:01.3]}
2... dxc4 {[%clk 0:03:01.8]} 3. e4 {[%clk 0:03:01.8]} 3... Nf6 {[%clk
0:03:01.6]} 4. e5 {[%clk 0:03:02.1]} 4... Nd5 {[%clk 0:03:01.4]} 5. Bxc4 {[%clk
0:03:03.4]} 5... Nb6 {[%clk 0:03:00.4]} 6. Bb3 {[%clk 0:03:03.9]} 6... Nc6
{[%clk 0:02:56.2]} 7. Nf3 {[%clk 0:03:04.3]} 7... Bg4 {[%clk 0:02:51.8]} 8. Be3
{[%clk 0:03:03.5]} 8... e6 {[%clk 0:02:50.1]} 9. O-O {[%clk 0:02:53.6]} 9... Qd7
{[%clk 0:02:45.3]} 10. h3 {[%clk 0:02:48.5]} 10... Bh5 {[%clk 0:02:42.3]} 11.
Nbd2 {[%clk 0:02:48.3]} 11... Be7 {[%clk 0:02:39.5]} 12. a3 {[%clk 0:02:46.9]}
12... O-O-O {[%clk 0:02:37.9]} 13. Qc2 {[%clk 0:02:44.6]} 13... g5 {[%clk
0:02:21.3]} 14. Ba2 {[%clk 0:02:10.5]} 14... f5 {[%clk 0:01:48.2]} 15. exf6
{[%clk 0:01:49.7]} 15... Bxf6 {[%clk 0:01:47.9]} 16. Rac1 {[%clk 0:01:37.8]}
16... g4 {[%clk 0:01:34]} 17. Ne4 {[%clk 0:01:28.4]} 17... gxf3 {[%clk
0:01:13.8]} 18. Nxf6 {[%clk 0:01:20.5]} 18... Qg7 {[%clk 0:01:13.7]} 19. Bxe6+
{[%clk 0:00:33.5]} 19... Kb8 {[%clk 0:01:13.5]} 20. Ng4 {[%clk 0:00:34]} 20...
Bxg4 {[%clk 0:01:12.3]} 21. hxg4 {[%clk 0:00:33]} 21... h5 {[%clk 0:01:02.5]}
22. g5 {[%clk 0:00:29.4]} 22... fxg2 {[%clk 0:00:54]} 23. Rfd1 {[%clk
0:00:23.9]} 23... h4 {[%clk 0:00:36.3]} 24. d5 {[%clk 0:00:24.5]} 24... Ne5
{[%clk 0:00:34.3]} 25. f4 {[%clk 0:00:22.8]} 25... Nf3+ {[%clk 0:00:29.4]} 26.
Kxg2 {[%clk 0:00:20.5]} 26... h3+ {[%clk 0:00:11.9]} 27. Kxf3 {[%clk 0:00:21.2]}
27... h2 {[%clk 0:00:12.5]} 28. Rh1 {[%clk 0:00:21.1]} 28... Nxd5 {[%clk
0:00:12.8]} 29. Rxh2 {[%clk 0:00:19.2]} 29... Nxe3 {[%clk 0:00:10.6]} 30. Kxe3
{[%clk 0:00:17.9]} 30... Qd4+ {[%clk 0:00:11]} 31. Kf3 {[%clk 0:00:18.7]} 31...
Qd3+ {[%clk 0:00:11.3]} 32. Qxd3 {[%clk 0:00:19.5]} 32... Rxd3+ {[%clk
0:00:11.6]} 33. Ke4 {[%clk 0:00:21]} 33... Rxh2 {[%clk 0:00:12.2]} 34. Kxd3
{[%clk 0:00:21.7]} 34... Rxb2 {[%clk 0:00:14.1]} 35. g6 {[%clk 0:00:21.6]} 1-0

[Event "*** Titled Tuesday Blitz"]
[Site "Chess.com"]
[Date "2019.03.05"]
[Round "5"]
[White "vugarrasulov"]
[Black "DanielNaroditsky"]
[Result "1-0"]
[WhiteElo "2764"]
[BlackElo "2984"]
[TimeControl "180+2"]
[EndTime "14:12:09 PST"]
[Termination "vugarrasulov won by resignation"]

1. e4 {[%clk 0:03:01.9]} 1... e5 {[%clk 0:03:00]} 2. Nf3 {[%clk 0:03:02.7]} 2...
Nc6 {[%clk 0:03:01.7]} 3. Bb5 {[%clk 0:03:03.9]} 3... a6 {[%clk 0:03:03]} 4. Ba4
{[%clk 0:03:04.9]} 4... Nf6 {[%clk 0:03:04.5]} 5. O-O {[%clk 0:03:06.3]} 5...
Be7 {[%clk 0:03:06.2]} 6. d3 {[%clk 0:03:06.9]} 6... b5 {[%clk 0:03:07.1]} 7.
Bb3 {[%clk 0:03:08.3]} 7... d6 {[%clk 0:03:08.9]} 8. a4 {[%clk 0:03:09.2]} 8...
b4 {[%clk 0:03:08.9]} 9. Nbd2 {[%clk 0:03:08.9]} 9... O-O {[%clk 0:03:09]} 10.
a5 {[%clk 0:03:07.3]} 10... Rb8 {[%clk 0:03:07.8]} 11. Bc4 {[%clk 0:03:03.9]}
11... h6 {[%clk 0:03:01.5]} 12. Re1 {[%clk 0:03:03.1]} 12... Re8 {[%clk
0:02:51.5]} 13. h3 {[%clk 0:03:03.6]} 13... Bf8 {[%clk 0:02:52.8]} 14. Nf1
{[%clk 0:02:58.4]} 14... Ne7 {[%clk 0:02:41.4]} 15. Ne3 {[%clk 0:02:57.4]} 15...
Ng6 {[%clk 0:02:42.5]} 16. Nh2 {[%clk 0:02:48.4]} 16... c6 {[%clk 0:02:42.3]}
17. Nhg4 {[%clk 0:02:48.1]} 17... Nxg4 {[%clk 0:02:30.1]} 18. hxg4 {[%clk
0:02:50]} 18... Nf4 {[%clk 0:02:31.2]} 19. Qf3 {[%clk 0:02:43.5]} 19... g6
{[%clk 0:01:46.7]} 20. Bd2 {[%clk 0:02:34.4]} 20... Bg7 {[%clk 0:01:35.4]} 21.
Ra4 {[%clk 0:02:31.2]} 21... c5 {[%clk 0:01:27.4]} 22. Raa1 {[%clk 0:02:30.6]}
22... Bb7 {[%clk 0:01:22.7]} 23. c3 {[%clk 0:02:25.1]} 23... bxc3 {[%clk
0:01:20.8]} 24. bxc3 {[%clk 0:02:24.9]} 24... Qd7 {[%clk 0:01:22.7]} 25. Reb1
{[%clk 0:02:10.2]} 25... Kh7 {[%clk 0:00:59.3]} 26. Rb6 {[%clk 0:02:07.4]} 26...
Bc6 {[%clk 0:00:50.1]} 27. Rab1 {[%clk 0:01:58.7]} 27... Bb5 {[%clk 0:00:47.1]}
28. R1xb5 {[%clk 0:01:51.3]} 28... axb5 {[%clk 0:00:49]} 29. Bxb5 {[%clk
0:01:52.9]} 29... Qxb5 {[%clk 0:00:50.5]} 30. Rxb5 {[%clk 0:01:53.9]} 30... Rxb5
{[%clk 0:00:52.4]} 31. Nc4 {[%clk 0:01:52.5]} 31... Re7 {[%clk 0:00:34]} 32. g3
{[%clk 0:01:38.2]} 32... Ne6 {[%clk 0:00:31.2]} 33. Kg2 {[%clk 0:01:39.4]} 33...
Rd7 {[%clk 0:00:30]} 34. Qd1 {[%clk 0:01:37.4]} 34... Ra7 {[%clk 0:00:27.5]} 35.
Qa4 {[%clk 0:01:33]} 35... Nc7 {[%clk 0:00:29]} 36. g5 {[%clk 0:01:23.2]} 36...
hxg5 {[%clk 0:00:29.4]} 37. Bxg5 {[%clk 0:01:25.1]} 37... f6 {[%clk 0:00:27]}
38. Be3 {[%clk 0:01:25.9]} 38... Bf8 {[%clk 0:00:28.3]} 39. d4 {[%clk
0:01:22.2]} 39... Kg7 {[%clk 0:00:26.3]} 40. dxc5 {[%clk 0:01:20.5]} 40... dxc5
{[%clk 0:00:28.2]} 41. Qd1 {[%clk 0:01:20.8]} 41... Ne6 {[%clk 0:00:22.3]} 42.
Qd5 {[%clk 0:01:21.1]} 42... Kf7 {[%clk 0:00:22.3]} 43. f4 {[%clk 0:01:15.5]}
43... exf4 {[%clk 0:00:22.5]} 44. gxf4 {[%clk 0:01:17.4]} 44... Ke7 {[%clk
0:00:21.2]} 45. f5 {[%clk 0:01:17.2]} 45... gxf5 {[%clk 0:00:21]} 46. exf5
{[%clk 0:01:19.1]} 46... Nd8 {[%clk 0:00:03.9]} 47. Bxc5+ {[%clk 0:01:19.4]}
47... Ke8 {[%clk 0:00:05.6]} 48. Qe4+ {[%clk 0:01:17]} 48... Re7 {[%clk
0:00:07.3]} 49. Bxe7 {[%clk 0:01:17.9]} 49... Bxe7 {[%clk 0:00:08.6]} 50. Nd6+
{[%clk 0:01:19.2]} 1-0

[Event "*** Titled Tuesday Blitz"]
[Site "Chess.com"]
[Date "2019.03.05"]
[Round "5"]
[White "LLRChess"]
[Black "Keaton87"]
[Result "1-0"]
[WhiteElo "2335"]
[BlackElo "2536"]
[TimeControl "180+2"]
[EndTime "14:12:12 PST"]
[Termination "LLRChess won on time"]

1. f4 {[%clk 0:03:01.9]} 1... e5 {[%clk 0:03:00.1]} 2. fxe5 {[%clk 0:03:01.7]}
2... d6 {[%clk 0:03:01.2]} 3. exd6 {[%clk 0:03:01.8]} 3... Bxd6 {[%clk
0:03:02.8]} 4. Nf3 {[%clk 0:03:01.7]} 4... g5 {[%clk 0:03:03.9]} 5. g3 {[%clk
0:03:02.6]} 5... g4 {[%clk 0:03:03.7]} 6. Nh4 {[%clk 0:03:03.5]} 6... Ne7 {[%clk
0:03:05.3]} 7. Bg2 {[%clk 0:03:01.5]} 7... Ng6 {[%clk 0:03:06.2]} 8. Nxg6 {[%clk
0:03:02]} 8... hxg6 {[%clk 0:03:08.1]} 9. Kf1 {[%clk 0:02:34.7]} 9... Nc6 {[%clk
0:01:28.2]} 10. Nc3 {[%clk 0:01:54.1]} 10... Bf5 {[%clk 0:01:13.8]} 11. e4
{[%clk 0:01:50.3]} 11... Bd7 {[%clk 0:01:10.6]} 12. d4 {[%clk 0:01:50.6]} 12...
Qf6+ {[%clk 0:01:10]} 13. Kg1 {[%clk 0:01:45.6]} 13... Nxd4 {[%clk 0:01:04.8]}
14. Be3 {[%clk 0:01:43.8]} 14... Bc5 {[%clk 0:00:53.2]} 15. Nd5 {[%clk
0:01:21.1]} 15... Qe5 {[%clk 0:00:45.1]} 16. c3 {[%clk 0:01:06.5]} 16... Nf3+
{[%clk 0:00:43.7]} 17. Bxf3 {[%clk 0:01:06.3]} 17... Bxe3+ {[%clk 0:00:45]} 18.
Nxe3 {[%clk 0:01:06.7]} 18... gxf3 {[%clk 0:00:44.7]} 19. Qxf3 {[%clk
0:01:05.7]} 19... O-O-O {[%clk 0:00:45]} 20. Kg2 {[%clk 0:00:36.4]} 20... Bh3+
{[%clk 0:00:45]} 21. Kf2 {[%clk 0:00:36.6]} 21... Rd2+ {[%clk 0:00:45.8]} 22.
Ke1 {[%clk 0:00:37.2]} 22... Rxb2 {[%clk 0:00:43.8]} 23. Nc4 {[%clk 0:00:38.1]}
23... Qb5 {[%clk 0:00:34.1]} 24. Nxb2 {[%clk 0:00:34.9]} 24... Qxb2 {[%clk
0:00:35]} 25. Rd1 {[%clk 0:00:35.6]} 25... f5 {[%clk 0:00:21]} 26. Rd2 {[%clk
0:00:29]} 26... Qb6 {[%clk 0:00:07.5]} 27. e5 {[%clk 0:00:19.7]} 27... Re8
{[%clk 0:00:06.7]} 28. Qf4 {[%clk 0:00:19.3]} 28... g5 {[%clk 0:00:05.9]} 29.
Qd4 {[%clk 0:00:19.5]} 29... Qe6 {[%clk 0:00:04.7]} 30. Kf2 {[%clk 0:00:19.3]}
30... f4 {[%clk 0:00:02.9]} 31. Rhd1 {[%clk 0:00:18.4]} 31... b6 {[%clk
0:00:03]} 32. gxf4 {[%clk 0:00:17.4]} 32... gxf4 {[%clk 0:00:03.7]} 33. Qxf4
{[%clk 0:00:18.1]} 1-0

[Event "*** Titled Tuesday Blitz"]
[Site "Chess.com"]
[Date "2019.03.05"]
[Round "5"]
[White "LaughingTiger"]
[Black "1995Tiger"]
[Result "0-1"]
[WhiteElo "2144"]
[BlackElo "1972"]
[TimeControl "180+2"]
[EndTime "14:12:17 PST"]
[Termination "1995Tiger won by checkmate"]

1. e4 {[%clk 0:03:01.5]} 1... e6 {[%clk 0:02:55.2]} 2. d4 {[%clk 0:03:01.2]}
2... d5 {[%clk 0:02:55.7]} 3. Nd2 {[%clk 0:02:58.7]} 3... Nc6 {[%clk 0:02:55.5]}
4. Ngf3 {[%clk 0:02:58.7]} 4... Nf6 {[%clk 0:02:56.2]} 5. e5 {[%clk 0:02:57.8]}
5... Nd7 {[%clk 0:02:56.7]} 6. Bd3 {[%clk 0:02:59.2]} 6... f6 {[%clk 0:02:57.6]}
7. exf6 {[%clk 0:02:57.1]} 7... Qxf6 {[%clk 0:02:57.5]} 8. O-O {[%clk 0:02:56]}
8... Bd6 {[%clk 0:02:52.6]} 9. c4 {[%clk 0:02:53.8]} 9... O-O {[%clk 0:02:47.7]}
10. c5 {[%clk 0:02:42.2]} 10... Bf4 {[%clk 0:02:44.3]} 11. Nb3 {[%clk
0:02:40.8]} 11... e5 {[%clk 0:02:24.4]} 12. dxe5 {[%clk 0:02:23.5]} 12... Ndxe5
{[%clk 0:02:23.8]} 13. Bxf4 {[%clk 0:02:19.7]} 13... Qxf4 {[%clk 0:02:25]} 14.
Nxe5 {[%clk 0:02:20.5]} 14... Nxe5 {[%clk 0:02:14.5]} 15. Nd4 {[%clk 0:02:02.4]}
15... Bg4 {[%clk 0:02:00.7]} 16. Be2 {[%clk 0:02:00.2]} 16... c6 {[%clk
0:01:41]} 17. Bxg4 {[%clk 0:01:58.3]} 17... Nxg4 {[%clk 0:01:38.8]} 18. g3
{[%clk 0:01:58.6]} 18... Qe4 {[%clk 0:00:47.8]} 19. h3 {[%clk 0:01:39.7]} 19...
Ne3 {[%clk 0:00:11.1]} 20. fxe3 {[%clk 0:01:07.1]} 20... Qxe3+ {[%clk 0:00:13]}
21. Kg2 {[%clk 0:01:08.5]} 21... Rxf1 {[%clk 0:00:13.7]} 22. Qxf1 {[%clk
0:01:10.4]} 22... Qxd4 {[%clk 0:00:14.5]} 23. Re1 {[%clk 0:01:10.1]} 23... Qxb2+
{[%clk 0:00:15]} 24. Re2 {[%clk 0:01:10.1]} 24... Qf6 {[%clk 0:00:12.9]} 25. Rf2
{[%clk 0:01:05.2]} 25... Qg6 {[%clk 0:00:13.3]} 26. Kh2 {[%clk 0:00:56.9]} 26...
h6 {[%clk 0:00:14]} 27. Re2 {[%clk 0:00:49.4]} 27... Rf8 {[%clk 0:00:13.7]} 28.
Qe1 {[%clk 0:00:47]} 28... Kh7 {[%clk 0:00:13.5]} 29. Re7 {[%clk 0:00:46.1]}
29... Qc2+ {[%clk 0:00:13.3]} 30. Re2 {[%clk 0:00:45.6]} 30... Qg6 {[%clk
0:00:13.3]} 31. Qb4 {[%clk 0:00:41.5]} 31... Qd3 {[%clk 0:00:11.8]} 32. Rg2
{[%clk 0:00:41]} 32... Rf1 {[%clk 0:00:10]} 33. Qxb7 {[%clk 0:00:18.5]} 33...
Qd1 {[%clk 0:00:10.7]} 34. g4 {[%clk 0:00:19.9]} 34... Qe1 {[%clk 0:00:11.1]}
35. Rb2 {[%clk 0:00:11]} 35... Rh1+ {[%clk 0:00:11.8]} 36. Kg2 {[%clk
0:00:12.5]} 36... Qf1+ {[%clk 0:00:12.1]} 37. Kg3 {[%clk 0:00:14]} 37... Rxh3#
{[%clk 0:00:12.9]} 0-1

[Event "*** Titled Tuesday Blitz"]
[Site "Chess.com"]
[Date "2019.03.05"]
[Round "5"]
[White "Gentlejimmy7"]
[Black "belisarius64"]
[Result "1-0"]
[WhiteElo "2402"]
[BlackElo "2474"]
[TimeControl "180+2"]
[EndTime "14:12:21 PST"]
[Termination "Gentlejimmy7 won by resignation"]

1. d4 {[%clk 0:03:01.9]} 1... Nf6 {[%clk 0:03:00.6]} 2. Nf3 {[%clk 0:03:03.1]}
2... g6 {[%clk 0:03:02]} 3. g3 {[%clk 0:03:04.5]} 3... Bg7 {[%clk 0:03:02.6]} 4.
Bg2 {[%clk 0:03:06.2]} 4... O-O {[%clk 0:03:04.4]} 5. O-O {[%clk 0:03:07.8]}
5... d6 {[%clk 0:03:06]} 6. b3 {[%clk 0:03:08.6]} 6... c5 {[%clk 0:02:50.7]} 7.
c4 {[%clk 0:03:04.6]} 7... cxd4 {[%clk 0:02:48.9]} 8. Nxd4 {[%clk 0:03:04.8]}
8... a6 {[%clk 0:02:48.3]} 9. Bb2 {[%clk 0:03:05.8]} 9... Qc7 {[%clk 0:02:47.2]}
10. Nc3 {[%clk 0:03:07.1]} 10... Nc6 {[%clk 0:02:48.3]} 11. Rc1 {[%clk
0:03:08.6]} 11... Nxd4 {[%clk 0:02:48.3]} 12. Qxd4 {[%clk 0:03:08.9]} 12... Be6
{[%clk 0:02:49.8]} 13. Nd5 {[%clk 0:03:08.4]} 13... Bxd5 {[%clk 0:02:48.7]} 14.
Bxd5 {[%clk 0:03:10]} 14... Nh5 {[%clk 0:02:36.7]} 15. Qd2 {[%clk 0:03:10.5]}
15... Bxb2 {[%clk 0:02:38.2]} 16. Qxb2 {[%clk 0:03:12.1]} 16... Nf6 {[%clk
0:02:39.7]} 17. Bf3 {[%clk 0:03:11.1]} 17... Rab8 {[%clk 0:02:41.2]} 18. Rfd1
{[%clk 0:03:11.5]} 18... Rfc8 {[%clk 0:02:42.2]} 19. h4 {[%clk 0:02:38.2]} 19...
Qc5 {[%clk 0:02:38.4]} 20. b4 {[%clk 0:02:24.4]} 20... Qb6 {[%clk 0:02:26.2]}
21. a3 {[%clk 0:02:21.9]} 21... Rc7 {[%clk 0:02:20.9]} 22. Rc2 {[%clk 0:02:17]}
22... Rbc8 {[%clk 0:02:21.9]} 23. Rdc1 {[%clk 0:02:18.3]} 23... Qa7 {[%clk
0:01:50.2]} 24. Kg2 {[%clk 0:02:17.6]} 24... b6 {[%clk 0:01:43.6]} 25. Qd4
{[%clk 0:02:14.9]} 25... Nd7 {[%clk 0:01:40.4]} 26. h5 {[%clk 0:02:14.7]} 26...
Ne5 {[%clk 0:01:37.6]} 27. hxg6 {[%clk 0:01:48.1]} 27... hxg6 {[%clk 0:01:36.7]}
28. Qh4 {[%clk 0:01:31.3]} 28... Nxf3 {[%clk 0:00:39.4]} 29. exf3 {[%clk
0:01:31.9]} 29... Kg7 {[%clk 0:00:37]} 30. Rh1 {[%clk 0:01:33.3]} 30... Rg8
{[%clk 0:00:38.2]} 31. Qh6+ {[%clk 0:01:31.2]} 31... Kf6 {[%clk 0:00:39.7]} 32.
Rh4 {[%clk 0:01:26.6]} 32... e5 {[%clk 0:00:40.8]} 33. Rd2 {[%clk 0:01:18.1]}
33... Rd7 {[%clk 0:00:25.2]} 34. Qh7 {[%clk 0:01:10.5]} 34... Qa8 {[%clk
0:00:20.6]} 35. c5 {[%clk 0:01:02.8]} 35... bxc5 {[%clk 0:00:20.1]} 36. bxc5
{[%clk 0:01:04.4]} 36... d5 {[%clk 0:00:12.9]} 37. c6 {[%clk 0:01:05.6]} 37...
Rd6 {[%clk 0:00:13.7]} 38. c7 {[%clk 0:01:06]} 38... Qc8 {[%clk 0:00:08.8]} 39.
Rc2 {[%clk 0:01:00.9]} 39... Rf8 {[%clk 0:00:06.1]} 40. Qh6 {[%clk 0:01:00.7]}
40... Re8 {[%clk 0:00:04.3]} 41. Rb4 {[%clk 0:01:01.2]} 41... Rd7 {[%clk
0:00:03.1]} 42. Rb8 {[%clk 0:01:01.2]} 42... Qxb8 {[%clk 0:00:02.8]} 43. cxb8=Q
{[%clk 0:01:01.4]} 43... Rxb8 {[%clk 0:00:04.7]} 44. Rc6+ {[%clk 0:01:02.3]}
44... Ke7 {[%clk 0:00:06.1]} 45. Qg5+ {[%clk 0:01:02.5]} 45... Ke8 {[%clk
0:00:06.7]} 46. Qxe5+ {[%clk 0:01:03.5]} 1-0